fUST/lending_fUST_20240705
["ID","MTS","AMOUNT","RATE_DAILY","PERIOD"]
[331243294,1720153858697,-500.0,0.00049315,120]
[331243295,1720153858706,-500.0,0.00049315,31]
[331243296,1720153858716,-500.0,0.00049315,31]
[331243297,1720153858727,-500.0,0.00049315,31]
[331243298,1720153858736,-500.0,0.00049315,31]
[331243299,1720153858746,-432.75202255,0.00049315,31]
[331243300,1720153858756,-270.87836104,0.00049315,120]
[331243301,1720153858765,-500.0,0.00049315,120]
[331243302,1720153858786,-7719.87,0.00049315,120]
[331243303,1720153858799,-1562.32,0.00049315,21]
[331243304,1720153858808,-500.61334204,0.00049315,120]
[331243305,1720153858818,-500.43238519,0.00049315,120]
[331243306,1720153858830,-500.0,0.00049315,120]
[331243307,1720153858840,-500.0,0.00049315,120]
[331243308,1720153858849,-151.0,0.00049315,120]
[331243309,1720153858859,-2000.0,0.000494,120]
[331243310,1720153858868,-2000.0,0.000494,120]
[331243311,1720153858878,-2000.0,0.000494,120]
[331243312,1720153858888,-2000.0,0.000494,120]
[331243313,1720153858897,-2000.0,0.000494,120]
[331243314,1720153858906,-2000.0,0.000494,120]
[331243315,1720153858916,-2000.0,0.000494,120]
[331243316,1720153858926,-2000.0,0.000494,120]
[331243317,1720153858936,-2000.0,0.000494,120]
[331243318,1720153858946,-2000.0,0.000494,120]
[331243319,1720153858955,-2000.0,0.000494,120]
[331243320,1720153858964,-2000.0,0.000494,120]
[331243321,1720153858974,-2000.0,0.000494,120]
[331243322,1720153858983,-2000.0,0.000494,120]
[331243323,1720153858993,-2000.0,0.000494,120]
[331243324,1720153859002,-2000.0,0.000494,120]
[331243325,1720153859012,-2000.0,0.000494,120]
[331243326,1720153859026,-2000.0,0.000494,120]
[331243327,1720153859036,-2000.0,0.000494,120]
[331243328,1720153859046,-1325.0,0.000494,120]
[331243329,1720153859056,-5000.0,0.000495,120]
[331243330,1720153859066,-2000.0,0.000495,120]
[331243331,1720153859075,-2000.0,0.000495,120]
[331243332,1720153859085,-2000.0,0.000495,120]
[331243333,1720153859094,-2000.0,0.000495,120]
[331243334,1720153859104,-2000.0,0.000495,120]
[331243335,1720153859114,-2000.0,0.000495,120]
[331243336,1720153859124,-2000.0,0.000495,120]
[331243337,1720153859134,-2000.0,0.000495,120]
[331243338,1720153859145,-498.0,0.000495,30]
[331243339,1720153859155,-5000.0,0.0004951,120]
[331243340,1720153859164,-5000.0,0.00049511,120]
[331243341,1720153859174,-5000.0,0.00049512,120]
[331243342,1720153859184,-5000.0,0.00049513,120]
[331243343,1720153859195,-5000.0,0.00049514,120]
[331243344,1720153859206,-5000.0,0.00049515,120]
[331243345,1720153859216,-5000.0,0.00049516,120]
[331243346,1720153859226,-5000.0,0.00049517,120]
[331243347,1720153859236,-5000.0,0.00049518,120]
[331243348,1720153859245,-5000.0,0.00049519,120]
[331243349,1720153859256,-5000.0,0.0004952,120]
[331243350,1720153859265,-5000.0,0.00049521,120]
[331243351,1720153859280,-5000.0,0.00049522,120]
[331243352,1720153859289,-5000.0,0.00049523,120]
[331243353,1720153859298,-5000.0,0.00049524,120]
[331243354,1720153859308,-5000.0,0.00049525,120]
[331243355,1720153859317,-5000.0,0.00049526,120]
[331243356,1720153859326,-5000.0,0.00049527,120]
[331243357,1720153859335,-5000.0,0.00049528,120]
[331243358,1720153859344,-5000.0,0.00049529,120]
[331243359,1720153859354,-5000.0,0.0004953,120]
[331243360,1720153859364,-5000.0,0.00049531,120]
[331243361,1720153859374,-5000.0,0.00049532,120]
[331243362,1720153859383,-5000.0,0.00049533,120]
[331243363,1720153859392,-5000.0,0.00049534,120]
[331243364,1720153859402,-5000.0,0.00049535,120]
[331243365,1720153859411,-5000.0,0.00049536,120]
[331243366,1720153859420,-5000.0,0.00049537,120]
[331243367,1720153859429,-3288.43,0.00049538,120]
[331243368,1720153859439,-195.97018361,0.00049589,120]
[331243369,1720153859448,-156.25095608,0.00049642,30]
[331243370,1720153859457,-500.0,0.00049684,120]
[331243371,1720153859467,-500.0,0.00049684,120]
[331243372,1720153859476,-500.0,0.00049684,120]
[331243373,1720153859486,-500.0,0.00049684,120]
[331243374,1720153859495,-500.0,0.00049684,120]
[331243375,1720153859506,-500.0,0.00049684,120]
[331243376,1720153859517,-500.0,0.00049684,120]
[331243377,1720153859540,-500.0,0.00049684,120]
[331243378,1720153859550,-500.0,0.00049684,120]
[331243379,1720153859560,-500.0,0.00049684,120]
[331243380,1720153859570,-500.0,0.00049684,120]
[331243381,1720153859579,-500.0,0.00049684,120]
[331243382,1720153859590,-500.0,0.00049684,120]
[331243383,1720153859599,-500.0,0.00049684,120]
[331243384,1720153859609,-500.0,0.00049684,120]
[331243385,1720153859619,-418.08,0.00049684,120]
[331243386,1720153859629,-500.0,0.00049684,120]
[331243387,1720153859639,-500.0,0.00049684,120]
[331243388,1720153859649,-500.0,0.00049684,120]
[331243389,1720153859659,-500.0,0.00049684,120]
[331243390,1720153859669,-500.0,0.00049684,120]
[331243391,1720153859679,-500.0,0.00049684,120]
[331243392,1720153859688,-500.0,0.00049684,120]
[331243393,1720153859697,-571.9,0.00049684,120]
[331243394,1720153859707,-500.0,0.00049684,120]
[331243395,1720153859716,-500.0,0.00049684,120]
[331243396,1720153859726,-500.0,0.00049684,120]
[331243397,1720153859735,-500.0,0.00049684,120]
[331243398,1720153859746,-500.0,0.00049684,120]
[331243399,1720153859755,-500.0,0.00049684,120]
[331243400,1720153859766,-500.0,0.00049684,120]
[331243401,1720153859788,-500.0,0.00049684,120]
[331243402,1720153859797,-500.0,0.00049684,120]
[331243403,1720153859806,-500.0,0.00049684,120]
[331243404,1720153859816,-500.0,0.00049684,120]
[331243405,1720153859826,-433.93,0.00049684,120]
[331243406,1720153859835,-500.0,0.00049684,120]
[331243407,1720153859845,-500.0,0.00049684,120]
[331243408,1720153859931,-150.30016482,0.00049759,30]
[331243409,1720153859941,-156.0,0.00049839,120]
[331243410,1720153859952,-194.8,0.00049926,60]
[331243411,1720153859961,-151.0,0.00049926,60]
[331243412,1720153859971,-153.17104864,0.00049927,30]
[331243413,1720153859980,-156.25095611,0.0004995,30]
[331243414,1720153859989,-251.4237794,0.00049977,30]
[331243415,1720153859999,-257.26552659,0.00049991,30]
[331243416,1720153860008,-281.18221661,0.00049999,120]
[331243417,1720153860022,-632.03190777,0.00049999,120]
[331243418,1720153860034,-270.30578028,0.00049999,31]
[331243419,1720153860043,-154.77557542,0.0005,30]
[331243420,1720153860053,-2000.0,0.0005,60]
[331243421,1720153860062,-2000.0,0.0005,90]
[331243422,1720153860072,-316.86789464,0.0005,120]
[331243423,1720153860082,-1000.0,0.0005,120]
[331243424,1720153860091,-4308.03496036,0.0005,60]
[331243425,1720153860099,-190.87160382,0.0005,30]
[331243426,1720153860109,-210.49032837,0.0005,20]
[331243427,1720153860118,-257.12838475,0.0005,120]
[331243428,1720153860128,-90427.8986662,0.0005,120]
[331243429,1720153860138,-6822.94913691,0.0005,30]
[331243430,1720153860148,-254.60620733,0.0005,120]
[331243431,1720153860157,-226.25133084,0.0005,4]
[331243432,1720153860167,-2184.75188232,0.0005,120]
[331243433,1720153860176,-573.34047078,0.0005,7]
[331243434,1720153860186,-39999.999999,0.0005,60]
[331243435,1720153860195,-154.72922386,0.0005,4]
[331243436,1720153860206,-1437.0,0.0005,30]
[331243437,1720153860215,-60279.69158064,0.0005,30]
[331243438,1720153860225,-400.0,0.0005,30]
[331243439,1720153860235,-150.30016482,0.00050008,60]
[331243440,1720153860244,-169.4,0.00050125,60]
[331243441,1720153860254,-152.0,0.00050125,60]
[331243442,1720153860263,-257.26552687,0.00050125,60]
[331243443,1720153860279,-251.42377962,0.00050147,60]
[331243444,1720153860290,-151.0,0.00050247,120]
[331243445,1720153860299,-159.7109192,0.00050271,60]
[331243446,1720153860308,-153.17104873,0.00050272,60]
[331243447,1720153860321,-500.0,0.000503,30]
[331243448,1720153860331,-151.0,0.00050301,120]
[331243449,1720153860342,-262.00590178,0.00050454,60]
[331243450,1720153860351,-1000.0,0.000506,30]
[331243451,1720153860361,-180.0,0.000506,30]
[331243452,1720153860371,-497.0,0.000506,33]
[331243453,1720153860380,-500.0,0.00050684,19]
[331243454,1720153860389,-446.02374784,0.00050684,19]
[331243455,1720153860398,-1153.6739,0.000507,30]
[331243456,1720153860408,-1000.0,0.000509,30]
[331243457,1720153860417,-228.23898131,0.00050958,120]
[331243458,1720153860427,-1999.0,0.00051123,120]
[331243459,1720153860436,-1999.0,0.0005115,120]
[331243460,1720153860446,-1999.0,0.00051178,120]
[331243461,1720153860455,-151.0,0.00051178,120]
[331243462,1720153860465,-1315.0,0.00051198,70]
[331243463,1720153860474,-158.0,0.000512,48]
[331243464,1720153860483,-158.0,0.000512,48]
[331243465,1720153860492,-158.0,0.000512,48]
[331243466,1720153860501,-158.0,0.000512,48]
[331243467,1720153860510,-1999.0,0.00051205,120]
[331243468,1720153860525,-1999.0,0.00051232,120]
[331243469,1720153860534,-1999.0,0.0005126,120]
[331243470,1720153860543,-499.89430769,0.00051287,120]
[331243471,1720153860553,-169.4,0.00051306,60]
[331243472,1720153860563,-152.0,0.00051306,60]
[331243473,1720153860572,-210.0,0.00051349,120]
[331243474,1720153860581,-200.0,0.00051476,120]
[331243475,1720153860591,-500.0,0.000515,35]
[331243476,1720153860600,-594.0,0.000515,29]
[331243477,1720153860609,-500.0,0.00051506,120]
[331243478,1720153860619,-510.86012747,0.00051506,120]
[331243479,1720153860628,-500.0,0.00051506,120]
[331243480,1720153860638,-500.0,0.00051506,120]
[331243481,1720153860648,-500.0,0.00051506,120]
[331243482,1720153860657,-500.0,0.00051506,120]
[331243483,1720153860667,-500.0,0.00051506,120]
[331243484,1720153860676,-501.45234435,0.00051506,120]
[331243485,1720153860685,-500.0,0.00051506,120]
[331243486,1720153860695,-500.0,0.00051506,120]
[331243487,1720153860704,-500.0,0.00051506,120]
[331243488,1720153860714,-500.0,0.00051506,120]
[331243489,1720153860723,-500.0,0.00051506,120]
[331243490,1720153860733,-169.58518129,0.00051506,120]
[331243491,1720153860743,-500.0,0.00051506,120]
[331243492,1720153860752,-425.10612352,0.00051506,120]
[331243493,1720153860762,-500.84989565,0.00051506,120]
[331243494,1720153860782,-500.0,0.00051506,120]
[331243495,1720153860791,-500.0,0.00051506,120]
[331243496,1720153860800,-240.86542751,0.00051506,120]
[331243497,1720153860811,-257.69205983,0.00051506,120]
[331243498,1720153860820,-500.0,0.00051506,120]
[331243499,1720153860831,-500.0,0.00051506,120]
[331243500,1720153860840,-500.0,0.00051506,120]
[331243501,1720153860849,-500.0,0.00051506,120]
[331243502,1720153860862,-500.0,0.00051506,120]
[331243503,1720153860872,-500.0,0.00051506,120]
[331243504,1720153860881,-152.68399273,0.00051506,120]
[331243505,1720153860891,-500.0,0.00051506,120]
[331243506,1720153860899,-500.0,0.00051506,120]
[331243507,1720153860909,-500.0,0.00051506,120]
[331243508,1720153860918,-504.98023886,0.00051506,120]
[331243509,1720153860927,-500.0,0.00051506,120]
[331243510,1720153860937,-500.0,0.00051506,120]
[331243511,1720153860947,-500.0,0.00051506,14]
[331243512,1720153860956,-328.9886858,0.00051506,120]
[331243513,1720153860966,-533.71821425,0.00051506,120]
[331243514,1720153860975,-500.0,0.00051506,120]
[331243515,1720153860985,-500.0,0.00051506,20]
[331243516,1720153860994,-500.0,0.00051506,120]
[331243517,1720153861004,-500.0,0.00051506,120]
[331243518,1720153861014,-500.0,0.00051506,120]
[331243519,1720153861029,-516.75240305,0.00051506,120]
[331243520,1720153861039,-490.26951551,0.00051506,120]
[331243521,1720153861048,-500.0,0.00051506,120]
[331243522,1720153861057,-504.03449449,0.00051506,120]
[331243523,1720153861067,-500.0023747,0.00051506,120]
[331243524,1720153861077,-501.83086844,0.00051506,120]
[331243525,1720153861086,-500.0,0.00051506,120]
[331243526,1720153861096,-500.0,0.00051506,120]
[331243527,1720153861105,-500.0,0.00051506,120]
[331243528,1720153861115,-606.89560937,0.00051506,120]
[331243529,1720153861124,-500.0,0.00051506,120]
[331243530,1720153861133,-391.49236661,0.00051506,120]
[331243531,1720153861143,-454.54343614,0.00051506,120]
[331243532,1720153861152,-500.0,0.00051506,120]
[331243533,1720153861161,-509.9976012,0.00051506,120]
[331243534,1720153861170,-500.0,0.00051506,120]
[331243535,1720153861179,-500.0,0.00051506,120]
[331243536,1720153861191,-500.0,0.00051506,120]
[331243537,1720153861200,-503.17023142,0.00051506,120]
[331243538,1720153861210,-507.53325646,0.00051506,7]
[331243539,1720153861219,-500.0,0.00051506,120]
[331243540,1720153861228,-500.0,0.00051506,120]
[331243541,1720153861238,-500.0,0.00051506,120]
[331243542,1720153861247,-506.08615551,0.00051506,120]
[331243543,1720153861257,-529.99940316,0.00051506,120]
[331243544,1720153861331,-500.0,0.00051506,120]
[331243545,1720153861348,-547.75040355,0.00051506,120]
[331243546,1720153861358,-500.0,0.00051506,120]
[331243547,1720153861367,-307.43786234,0.00051506,120]
[331243548,1720153861377,-514.89588592,0.00051506,120]
[331243549,1720153861386,-507.50191722,0.00051506,120]
[331243550,1720153861396,-235.6,0.00051506,7]
[331243551,1720153861405,-500.0,0.00051506,120]
[331243552,1720153861415,-503.05191151,0.00051506,120]
[331243553,1720153861424,-500.0,0.00051506,120]
[331243554,1720153861434,-503.97824214,0.00051506,120]
[331243555,1720153861444,-365.18747278,0.00051506,120]
[331243556,1720153861454,-536.4410993,0.00051506,120]
[331243557,1720153861464,-269.46336998,0.00051506,120]
[331243558,1720153861474,-500.0,0.00051506,120]
[331243559,1720153861484,-504.51564218,0.00051506,120]
[331243560,1720153861494,-508.6715056,0.00051506,120]
[331243561,1720153861503,-500.0,0.00051506,120]
[331243562,1720153861513,-502.0095328,0.00051506,120]
[331243563,1720153861525,-500.0,0.00051506,120]
[331243564,1720153861534,-500.0,0.00051506,120]
[331243565,1720153861543,-501.03679113,0.00051506,120]
[331243566,1720153861553,-500.0,0.00051506,120]
[331243567,1720153861562,-500.0,0.00051506,120]
[331243568,1720153861572,-500.0,0.00051506,120]
[331243569,1720153861581,-500.0,0.00051506,120]
[331243570,1720153861591,-500.0,0.00051506,120]
[331243571,1720153861600,-500.0,0.00051506,120]
[331243572,1720153861609,-500.0,0.00051506,120]
[331243573,1720153861619,-500.0,0.00051506,120]
[331243574,1720153861628,-501.40875437,0.00051506,120]
[331243575,1720153861643,-500.0,0.00051506,120]
[331243576,1720153861654,-500.0,0.00051506,120]
[331243577,1720153861664,-500.0,0.00051506,120]
[331243578,1720153861674,-500.0,0.00051506,120]
[331243579,1720153861683,-500.0,0.00051506,120]
[331243580,1720153861693,-502.24894841,0.00051506,120]
[331243581,1720153861703,-520.42787007,0.00051506,120]
[331243582,1720153861714,-500.0,0.00051506,120]
[331243583,1720153861723,-500.0,0.00051506,120]
[331243584,1720153861733,-500.0,0.00051506,120]
[331243585,1720153861742,-500.0,0.00051506,120]
[331243586,1720153861752,-579.34,0.00051506,120]
[331243587,1720153861761,-500.0,0.00051506,120]
[331243588,1720153861777,-200.44967291,0.00051506,7]
[331243589,1720153861789,-500.0,0.00051506,120]
[331243590,1720153861798,-502.59496368,0.00051506,120]
[331243591,1720153861807,-283.59886772,0.00051506,120]
[331243592,1720153861816,-501.60328601,0.00051506,120]
[331243593,1720153861825,-511.6139329,0.00051506,120]
[331243594,1720153861835,-500.0,0.00051506,120]
[331243595,1720153861844,-500.0,0.00051506,120]
[331243596,1720153861853,-500.0,0.00051506,120]
[331243597,1720153861863,-500.0,0.00051506,120]
[331243598,1720153861874,-500.0,0.00051506,120]
[331243599,1720153861884,-510.3735483,0.00051506,120]
[331243600,1720153861893,-500.0,0.00051506,120]
[331243601,1720153861902,-500.0,0.00051506,120]
[331243602,1720153861911,-501.45041157,0.00051506,120]
[331243603,1720153861921,-500.0,0.00051506,120]
[331243604,1720153861930,-500.0,0.00051506,120]
[331243605,1720153861939,-500.0,0.00051506,120]
[331243606,1720153861948,-500.0,0.00051506,120]
[331243607,1720153861957,-500.0,0.00051506,120]
[331243608,1720153861967,-500.0,0.00051506,120]
[331243609,1720153861977,-500.0,0.00051506,120]
[331243610,1720153861986,-628.94440262,0.00051506,120]
[331243611,1720153861996,-450.15116256,0.00051506,120]
[331243612,1720153862006,-500.0,0.00051506,120]
[331243613,1720153862015,-520.07718291,0.00051506,120]
[331243614,1720153862031,-501.34407519,0.00051506,120]
[331243615,1720153862041,-601.24,0.00051506,120]
[331243616,1720153862052,-500.0,0.00051506,120]
[331243617,1720153862062,-500.0,0.00051506,120]
[331243618,1720153862072,-961.13,0.00051506,120]
[331243619,1720153862083,-505.1,0.00051506,120]
[331243620,1720153862092,-500.0,0.00051506,120]
[331243621,1720153862102,-500.0,0.00051506,120]
[331243622,1720153862111,-500.0,0.00051506,120]
[331243623,1720153862120,-500.0,0.00051506,120]
[331243624,1720153862130,-500.0,0.00051506,120]
[331243625,1720153862140,-500.0,0.00051506,120]
[331243626,1720153862150,-500.0,0.00051506,120]
[331243627,1720153862160,-500.0,0.00051506,120]
[331243628,1720153862169,-500.0,0.00051506,120]
[331243629,1720153862179,-500.0,0.00051506,30]
[331243630,1720153862191,-500.0,0.00051506,120]
[331243631,1720153862201,-500.0,0.00051506,120]
[331243632,1720153862211,-500.0,0.00051506,120]
[331243633,1720153862220,-156.34499924,0.00051506,120]
[331243634,1720153862229,-500.0,0.00051506,120]
[331243635,1720153862238,-502.49589144,0.00051506,120]
[331243636,1720153862248,-500.0,0.00051506,120]
[331243637,1720153862257,-500.0,0.00051506,120]
[331243638,1720153862267,-500.0,0.00051506,120]
[331243639,1720153862284,-500.0,0.00051506,120]
[331243640,1720153862294,-500.0,0.00051506,120]
[331243641,1720153862303,-500.0,0.00051506,120]
[331243642,1720153862313,-500.0,0.00051506,120]
[331243643,1720153862325,-450.52007654,0.00051506,120]
[331243644,1720153862335,-500.0,0.00051506,120]
[331243645,1720153862346,-500.0,0.00051506,120]
[331243646,1720153862356,-587.61170977,0.00051506,120]
[331243647,1720153862365,-500.0,0.00051506,120]
[331243648,1720153862375,-500.0,0.00051506,120]
[331243649,1720153862386,-500.0,0.00051506,120]
[331243650,1720153862395,-500.0,0.00051506,120]
[331243651,1720153862405,-500.0,0.00051506,120]
[331243652,1720153862415,-500.0,0.00051506,120]
[331243653,1720153862425,-502.94933944,0.00051506,120]
[331243654,1720153862434,-500.0,0.00051506,120]
[331243655,1720153862445,-500.0,0.00051506,120]
[331243656,1720153862454,-500.0,0.00051506,120]
[331243657,1720153862464,-500.0,0.00051506,120]
[331243658,1720153862473,-500.0,0.00051506,120]
[331243659,1720153862483,-547.37,0.00051506,120]
[331243660,1720153862493,-500.0,0.00051506,120]
[331243661,1720153862503,-500.0,0.00051506,120]
[331243662,1720153862512,-500.0,0.00051506,120]
[331243663,1720153862527,-500.0,0.00051506,120]
[331243664,1720153862536,-566.87231153,0.00051506,120]
[331243665,1720153862546,-803.13,0.00051506,120]
[331243666,1720153862556,-500.0,0.00051506,120]
[331243667,1720153862566,-500.0,0.00051506,120]
[331243668,1720153862575,-574.15664914,0.00051506,120]
[331243669,1720153862584,-506.32674305,0.00051506,120]
[331243670,1720153862665,-500.0,0.00051506,120]
[331243671,1720153862675,-500.0,0.00051506,120]
[331243672,1720153862684,-500.0,0.00051506,120]
[331243673,1720153862693,-500.0,0.00051506,120]
[331243674,1720153862703,-500.0,0.00051506,120]
[331243675,1720153862712,-500.0,0.00051506,120]
[331243676,1720153862723,-500.0,0.00051506,120]
[331243677,1720153862732,-500.0,0.00051506,120]
[331243678,1720153862741,-517.48803171,0.00051506,120]
[331243679,1720153862750,-500.0,0.00051506,120]
[331243680,1720153862760,-576.0,0.00051506,120]
[331243681,1720153862773,-500.0,0.00051506,120]
[331243682,1720153862785,-500.0,0.00051506,120]
[331243683,1720153862794,-500.0,0.00051506,120]
[331243684,1720153862804,-500.0,0.00051506,120]
[331243685,1720153862813,-500.0,0.00051506,120]
[331243686,1720153862823,-500.0,0.00051506,120]
[331243687,1720153862833,-500.0,0.00051506,120]
[331243688,1720153862843,-500.0,0.00051506,120]
[331243689,1720153862854,-502.1658958,0.00051506,120]
[331243690,1720153862863,-501.61385438,0.00051506,120]
[331243691,1720153862873,-500.0,0.00051506,120]
[331243692,1720153862883,-500.0,0.00051506,120]
[331243693,1720153862892,-500.0,0.00051506,120]
[331243694,1720153862901,-500.0,0.00051506,120]
[331243695,1720153862911,-500.0,0.00051506,120]
[331243696,1720153862920,-565.74,0.00051506,120]
[331243697,1720153862930,-500.0,0.00051506,120]
[331243698,1720153862939,-500.0,0.00051506,120]
[331243699,1720153862949,-500.0,0.00051506,120]
[331243700,1720153862959,-450.12371128,0.00051506,120]
[331243701,1720153862968,-500.0,0.00051506,2]
[331243702,1720153862978,-500.0,0.00051506,120]
[331243703,1720153862987,-500.0,0.00051506,120]
[331243704,1720153862996,-500.0,0.00051506,120]
[331243705,1720153863005,-500.0,0.00051506,120]
[331243706,1720153863015,-500.0,0.00051506,120]
[331243707,1720153863028,-500.0,0.00051506,120]
[331243708,1720153863037,-500.0,0.00051506,120]
[331243709,1720153863046,-500.0,0.00051506,120]
[331243710,1720153863055,-500.0,0.00051506,120]
[331243711,1720153863065,-500.0,0.00051506,120]
[331243712,1720153863074,-500.0,0.00051506,120]
[331243713,1720153863083,-500.0,0.00051506,120]
[331243714,1720153863093,-500.0,0.00051506,120]
[331243715,1720153863103,-500.0,0.00051506,120]
[331243716,1720153863112,-500.0,0.00051506,120]
[331243717,1720153863121,-725.59,0.00051506,120]
[331243718,1720153863130,-500.0,0.00051506,120]
[331243719,1720153863139,-7052.07,0.00051506,120]
[331243720,1720153863148,-500.0,0.00051506,120]
[331243721,1720153863158,-500.0,0.00051506,120]
[331243722,1720153863167,-500.0,0.00051506,120]
[331243723,1720153863176,-501.75172348,0.00051506,120]
[331243724,1720153863185,-501.07480242,0.00051506,120]
[331243725,1720153863195,-500.0,0.00051506,120]
[331243726,1720153863206,-500.0,0.00051506,120]
[331243727,1720153863216,-500.0,0.00051506,120]
[331243728,1720153863225,-1254.83,0.00051506,120]
[331243729,1720153863235,-500.0,0.00051506,120]
[331243730,1720153863244,-500.0,0.00051506,120]
[331243731,1720153863253,-500.0,0.00051506,120]
[331243732,1720153863263,-500.0,0.00051506,120]
[331243733,1720153863278,-500.0,0.00051506,120]
[331243734,1720153863287,-500.0,0.00051506,120]
[331243735,1720153863296,-500.0,0.00051506,120]
[331243736,1720153863305,-3484.52,0.00051506,120]
[331243737,1720153863315,-798.6,0.00051506,120]
[331243738,1720153863324,-884.08,0.00051506,120]
[331243739,1720153863334,-500.0,0.00051506,120]
[331243740,1720153863344,-500.0,0.00051506,120]
[331243741,1720153863353,-500.0,0.00051506,120]
[331243742,1720153863363,-500.0,0.00051506,120]
[331243743,1720153863373,-500.0,0.00051506,120]
[331243744,1720153863383,-503.02606417,0.00051506,120]
[331243745,1720153863392,-1983.08,0.00051506,120]
[331243746,1720153863402,-500.0,0.00051506,120]
[331243747,1720153863412,-500.0,0.00051506,120]
[331243748,1720153863421,-500.0,0.00051506,120]
[331243749,1720153863431,-500.0,0.00051506,120]
[331243750,1720153863441,-500.0,0.00051506,120]
[331243751,1720153863450,-500.0,0.00051506,120]
[331243752,1720153863460,-500.0,0.00051506,120]
[331243753,1720153863469,-500.0,0.00051506,120]
[331243754,1720153863479,-614.53,0.00051506,120]
[331243755,1720153863488,-508.55441035,0.00051506,120]
[331243756,1720153863497,-500.0,0.00051506,120]
[331243757,1720153863507,-534.97001889,0.00051506,120]
[331243758,1720153863517,-500.0,0.00051506,120]
[331243759,1720153863534,-246.7980773,0.00051506,120]
[331243760,1720153863545,-500.0,0.00051506,120]
[331243761,1720153863555,-500.0,0.00051506,120]
[331243762,1720153863565,-500.0,0.00051506,120]
[331243763,1720153863576,-500.0,0.00051506,120]
[331243764,1720153863586,-500.0,0.00051506,120]
[331243765,1720153863596,-500.0,0.00051506,120]
[331243766,1720153863606,-952.0,0.00051506,120]
[331243767,1720153863617,-500.0,0.00051506,120]
[331243768,1720153863627,-2633.54,0.00051506,120]
[331243769,1720153863636,-500.0,0.00051506,120]
[331243770,1720153863646,-500.0,0.00051506,120]
[331243771,1720153863656,-500.0,0.00051506,120]
[331243772,1720153863666,-500.0,0.00051506,120]
[331243773,1720153863676,-500.0,0.00051506,120]
[331243774,1720153863685,-523.81,0.00051506,120]
[331243775,1720153863696,-500.0,0.00051506,120]
[331243776,1720153863705,-500.0,0.00051506,120]
[331243777,1720153863715,-500.0,0.00051506,120]
[331243778,1720153863725,-500.0,0.00051506,120]
[331243779,1720153863735,-693.66,0.00051506,120]
[331243780,1720153863744,-503.64205831,0.00051506,120]
[331243781,1720153863754,-500.0,0.00051506,120]
[331243782,1720153863764,-500.0,0.00051506,120]
[331243783,1720153863777,-500.0,0.00051506,120]
[331243784,1720153863789,-500.0,0.00051506,120]
[331243785,1720153863798,-500.0,0.00051506,120]
[331243786,1720153863880,-500.0,0.00051506,120]
[331243787,1720153863890,-500.0,0.00051506,120]
[331243788,1720153863900,-500.0,0.00051506,120]
[331243789,1720153863910,-500.0,0.00051506,120]
[331243790,1720153863920,-500.0,0.00051506,120]
[331243791,1720153863930,-1007.78,0.00051506,120]
[331243792,1720153863940,-500.0,0.00051506,120]
[331243793,1720153863950,-500.0,0.00051506,120]